fUSD/lending_fUSD_20250125
["ID","MTS","AMOUNT","RATE_DAILY","PERIOD"]
[350310334,1737781846247,-500.0,0.00016438,2]
[350310335,1737781846256,-500.0,0.00016438,2]
[350310336,1737781846265,-503.78718421,0.00016438,2]
[350310337,1737781846275,-500.0,0.00016438,2]
[350310338,1737781846286,-504.88094945,0.00016438,2]
[350310339,1737781846295,-500.0,0.00016438,2]
[350310340,1737781846305,-99.25464896,0.00016438,2]
[350310369,1737782135060,150.0,0.00017,30]
[350310371,1737782487551,177.93,0.00012329,2]
[350310372,1737782517292,191.61,0.00010137,2]
[350310397,1737782759127,-1222.66,0.00013542,2]
[350310398,1737782759148,-2565.68463011,0.00015,10]
[350310426,1737783032217,-300.0,0.00014899,2]
[350310427,1737783032226,-14063.92705346,0.000149,2]
[350310428,1737783032235,-247.62634326,0.00014964,2]
[350310429,1737783032246,-2.37365674,0.00014964,2]
[350310430,1737783032255,-4897.62634326,0.00014992,2]
[350310431,1737783032267,-5880.0,0.00014992,2]
[350310432,1737783032278,-1550.0,0.00014992,2]
[350310433,1737783032290,-1728.71720219,0.00014992,2]
[350310434,1737783032311,-2400.0,0.00014992,2]
[350310435,1737783032340,-887.61832625,0.00014992,2]
[350310436,1737783032403,-2813.51741713,0.00014992,2]
[350310437,1737783032521,-3493.28635232,0.00014992,2]
[350310621,1737783038204,-249.23435885,0.00014992,2]
[350310622,1737783038215,-12446.31536989,0.00015,10]
[350310623,1737783038226,-550.0,0.00015,2]
[350310624,1737783038236,-414.08809647,0.00015,10]
[350310625,1737783038246,-161.25,0.00015078,2]
[350310626,1737783038255,-170.46,0.00015329,2]
[350310627,1737783038264,-945.02722573,0.000154,2]
[350310628,1737783038275,-250.0,0.00015415,2]
[350310629,1737783038284,-403.54,0.00015427,2]
[350310630,1737783038294,-1000.0,0.00015459,2]
[350310631,1737783038303,-1657.0,0.00015495,2]
[350310632,1737783038313,-3002.26298451,0.000155,2]
[350310633,1737783038323,-250.0,0.00015542,2]
[350310634,1737783038332,-171.33,0.00015785,2]
[350310635,1737783038342,-1000.0,0.000158,5]
[350310636,1737783038351,-1222.66,0.00015806,2]
[350310637,1737783038361,-173.02,0.00015884,2]
[350310638,1737783038371,-2000.0,0.000159,5]
[350310639,1737783038380,-6863.83674931,0.00016,2]
[350310640,1737783038392,-1030.43770984,0.00016,2]
[350310641,1737783038409,-469.86632997,0.00016,2]
[350310642,1737783038429,-4606.38058397,0.00016,2]
[350310643,1737783038439,-2123.95,0.00016165,2]
[350310644,1737783038448,-399.65934115,0.00016237,2]
[350310645,1737783038458,-16606.8828,0.00016238,2]
[350310647,1737783038467,-2129.529,0.00016238,2]
[350310649,1737783038476,-17593.50217518,0.00016238,2]
[350310651,1737783038485,-232.82975548,0.00016238,2]
[350310653,1737783038495,-6804.4986,0.00016238,2]
[350310655,1737783038504,-22366.0991,0.00016238,2]
[350310657,1737783038514,-2979.40057,0.0001627,2]
[350310659,1737783038523,-420.0,0.00016308,2]
[350310661,1737783038533,-5663.9153057,0.00016337,2]
[350310663,1737783038542,-273.30714778,0.00016338,2]
[350310665,1737783038551,-823605.32761099,0.00016338,2]
[350310667,1737783038561,-15695.9904,0.00016338,2]
[350310668,1737783038570,-88418.1279,0.00016338,2]
[350310670,1737783038580,-15904.8642,0.00016338,2]
[350310672,1737783038592,-257.26498492,0.00016338,2]
[350310674,1737783038601,-170.46,0.00016351,2]
[350310676,1737783038611,-158.13677173,0.00016428,2]
[350310678,1737783038619,-1278.11995734,0.00016437,2]
[350310679,1737783038628,-1048.6525761,0.00016437,2]
[350310682,1737783038639,-196.95357018,0.00016438,2]
[350310683,1737783038649,-507.56037015,0.00016438,2]
[350310685,1737783038658,-500.0,0.00016438,2]
[350310687,1737783038669,-500.0,0.00016438,2]
[350310689,1737783038679,-500.0,0.00016438,2]
[350310691,1737783038689,-502.01921503,0.00016438,2]
[350310693,1737783038698,-500.73856327,0.00016438,2]
[350310695,1737783038707,-500.0,0.00016438,2]
[350310697,1737783038716,-502.95059892,0.00016438,2]
[350310699,1737783038725,-609.85536102,0.00016438,2]
[350310701,1737783038734,-504.89316849,0.00016438,2]
[350310703,1737783038743,-504.65391323,0.00016438,2]
[350310705,1737783038753,-502.0126864,0.00016438,2]
[350310707,1737783038762,-506.35910993,0.00016438,2]
[350310709,1737783038772,-301.70050738,0.00016438,2]
[350310711,1737783038781,-501.79218393,0.00016438,2]
[350310713,1737783038791,-505.06548253,0.00016438,2]
[350310715,1737783038800,-502.72224881,0.00016438,2]
[350310717,1737783038809,-500.0,0.00016438,2]
[350310719,1737783038819,-502.02448123,0.00016438,2]
[350310721,1737783038828,-202.93245154,0.00016438,2]
[350310723,1737783038837,-502.82550983,0.00016438,2]
[350310725,1737783038846,-416.72478951,0.00016438,2]
[350310727,1737783038855,-255.88403069,0.00016438,2]
[350310729,1737783038865,-500.0,0.00016438,2]
[350310731,1737783038874,-264.64531716,0.00016438,2]
[350310733,1737783038883,-504.43331819,0.00016438,2]
[350310735,1737783038892,-503.75841606,0.00016438,2]
[350310737,1737783038901,-500.0,0.00016438,2]
[350310739,1737783038910,-508.45248196,0.00016438,2]
[350310741,1737783038919,-500.0,0.00016438,2]
[350310743,1737783038929,-525.96317762,0.00016438,2]
[350310745,1737783038939,-1880.49376852,0.00016438,2]
[350310747,1737783038949,-200.0,0.00016438,2]
[350310750,1737783038959,-500.0,0.00016438,2]
[350310752,1737783038968,-500.0,0.00016438,2]
[350310753,1737783038978,-500.0,0.00016438,2]
[350310755,1737783038987,-500.0,0.00016438,2]
[350310757,1737783038996,-500.0,0.00016438,2]
[350310759,1737783039006,-500.0,0.00016438,2]
[350310762,1737783039015,-500.0,0.00016438,2]
[350310763,1737783039024,-500.0,0.00016438,2]
[350310766,1737783039033,-500.0,0.00016438,2]
[350310767,1737783039043,-517.17528307,0.00016438,2]
[350310769,1737783039052,-500.0,0.00016438,2]
[350310771,1737783039062,-498.59410724,0.00016438,2]
[350310773,1737783039073,-500.0,0.00016438,2]
[350310775,1737783039083,-504.67886513,0.00016438,2]
[350310776,1737783039091,-500.0,0.00016438,2]
[350310777,1737783039100,-500.0,0.00016438,2]
[350310778,1737783039109,-500.0,0.00016438,2]
[350310779,1737783039118,-500.0,0.00016438,2]
[350310780,1737783039127,-401.27603411,0.00016438,2]
[350310781,1737783039135,-508.400902,0.00016438,2]
[350310782,1737783039144,-500.0,0.00016438,2]
[350310783,1737783039153,-500.0,0.00016438,2]
[350310784,1737783039162,-500.0,0.00016438,2]
[350310785,1737783039171,-500.0,0.00016438,2]
[350310786,1737783039180,-502.86736991,0.00016438,2]
[350310787,1737783039189,-507.70598522,0.00016438,2]
[350310788,1737783039197,-500.0,0.00016438,2]
[350310789,1737783039207,-500.0,0.00016438,2]
[350310790,1737783039218,-500.0,0.00016438,2]
[350310791,1737783039227,-500.0,0.00016438,2]
[350310793,1737783039236,-500.0,0.00016438,2]
[350310795,1737783039246,-500.0,0.00016438,2]
[350310797,1737783039256,-500.0,0.00016438,2]
[350310799,1737783039267,-505.76909839,0.00016438,2]
[350310801,1737783039280,-507.13511345,0.00016438,2]
[350310803,1737783039291,-500.0,0.00016438,2]
[350310805,1737783039304,-500.0,0.00016438,2]
[350310807,1737783039315,-500.0,0.00016438,2]
[350310809,1737783039326,-500.0,0.00016438,2]
[350310811,1737783039337,-500.0,0.00016438,2]
[350310813,1737783039346,-500.0,0.00016438,2]
[350310815,1737783039356,-500.0,0.00016438,2]
[350310817,1737783039365,-500.0,0.00016438,2]
[350310819,1737783039375,-519.48254739,0.00016438,2]
[350310821,1737783039384,-500.0,0.00016438,2]
[350310823,1737783039394,-500.0,0.00016438,2]
[350310825,1737783039403,-531.7175913,0.00016438,2]
[350310827,1737783039412,-500.0,0.00016438,2]
[350310829,1737783039422,-500.0,0.00016438,2]
[350310831,1737783039431,-507.28192085,0.00016438,2]
[350310833,1737783039441,-208.74274542,0.00016438,2]
[350310835,1737783039450,-500.0,0.00016438,2]
[350310837,1737783039459,-500.0,0.00016438,2]
[350310839,1737783039469,-500.0,0.00016438,2]
[350310841,1737783039478,-500.0,0.00016438,2]
[350310843,1737783039487,-500.0,0.00016438,2]
[350310845,1737783039497,-500.0,0.00016438,2]
[350310847,1737783039506,-500.0,0.00016438,2]
[350310849,1737783039515,-500.0,0.00016438,2]
[350310851,1737783039525,-500.0,0.00016438,2]
[350310853,1737783039534,-504.62445214,0.00016438,2]
[350310855,1737783039544,-500.0,0.00016438,2]
[350310856,1737783039554,-502.09859787,0.00016438,2]
[350310858,1737783039563,-500.0,0.00016438,2]
[350310860,1737783039572,-500.0,0.00016438,2]
[350310862,1737783039582,-510.63120144,0.00016438,2]
[350310864,1737783039595,-500.0,0.00016438,2]
[350310867,1737783039604,-501.72515162,0.00016438,2]
[350310868,1737783039614,-504.48842854,0.00016438,2]
[350310870,1737783039623,-500.0,0.00016438,2]
[350310872,1737783039634,-500.0,0.00016438,2]
[350310875,1737783039644,-500.0,0.00016438,2]
[350310877,1737783039653,-500.0,0.00016438,2]
[350310878,1737783039663,-501.94976832,0.00016438,2]
[350310880,1737783039671,-500.0,0.00016438,2]
[350310882,1737783039680,-584.59,0.00016438,2]
[350310884,1737783039689,-500.0,0.00016438,2]
[350310886,1737783039699,-500.0,0.00016438,2]
[350310888,1737783039708,-500.0,0.00016438,2]
[350310890,1737783039718,-500.0,0.00016438,2]
[350310892,1737783039727,-500.0,0.00016438,2]
[350310894,1737783039737,-504.8630224,0.00016438,2]
[350310897,1737783039748,-500.0,0.00016438,2]
[350310898,1737783039757,-500.0,0.00016438,2]
[350310900,1737783039767,-500.0,0.00016438,2]
[350310902,1737783039777,-500.0,0.00016438,2]
[350310904,1737783039786,-500.0,0.00016438,2]
[350310906,1737783039797,-500.0,0.00016438,2]
[350310908,1737783039807,-198.932043,0.00016438,2]
[350310910,1737783039817,-500.0,0.00016438,2]
[350310912,1737783039826,-500.0,0.00016438,2]
[350310914,1737783039835,-500.0,0.00016438,2]
[350310916,1737783039845,-516.07300515,0.00016438,2]
[350310918,1737783039855,-500.0,0.00016438,2]
[350310920,1737783039872,-500.0,0.00016438,2]
[350310922,1737783039882,-500.0,0.00016438,2]
[350310924,1737783039893,-500.0,0.00016438,2]
[350310926,1737783039904,-500.0,0.00016438,2]
[350310928,1737783039915,-588.99998749,0.00016438,2]
[350310930,1737783039924,-500.0,0.00016438,2]
[350310932,1737783039934,-500.0,0.00016438,2]
[350310934,1737783039944,-500.0,0.00016438,2]
[350310936,1737783039954,-500.0,0.00016438,2]
[350310938,1737783039964,-500.0,0.00016438,2]
[350310940,1737783039973,-500.0,0.00016438,2]
[350310942,1737783039983,-500.0,0.00016438,2]
[350310944,1737783039993,-500.0,0.00016438,2]
[350310946,1737783040003,-500.0,0.00016438,2]
[350310948,1737783040012,-510.76203886,0.00016438,2]
[350310950,1737783040022,-500.0,0.00016438,2]
[350310952,1737783040031,-184.70335746,0.00016438,2]
[350310954,1737783040040,-500.0,0.00016438,2]
[350310956,1737783040053,-500.0,0.00016438,2]
[350310958,1737783040063,-497.73528694,0.00016438,2]
[350310978,1737783040241,-500.0,0.00016438,2]
[350310980,1737783040250,-500.0,0.00016438,2]
[350310982,1737783040259,-500.0,0.00016438,2]
[350310984,1737783040269,-500.0,0.00016438,2]
[350310986,1737783040278,-500.0,0.00016438,2]
[350310988,1737783040289,-500.0,0.00016438,2]
[350310990,1737783040300,-500.0,0.00016438,2]
[350310992,1737783040310,-500.0,0.00016438,2]
[350310994,1737783040319,-500.0,0.00016438,2]
[350310996,1737783040328,-500.0,0.00016438,2]
[350310998,1737783040338,-500.0,0.00016438,2]
[350311000,1737783040347,-500.0,0.00016438,2]
[350311002,1737783040357,-512.77916462,0.00016438,2]
[350311004,1737783040367,-500.0,0.00016438,2]
[350311006,1737783040376,-500.0,0.00016438,2]
[350311008,1737783040385,-500.0,0.00016438,2]
[350311010,1737783040394,-500.0,0.00016438,2]
[350311012,1737783040403,-500.0,0.00016438,2]
[350311014,1737783040412,-500.0,0.00016438,2]
[350311016,1737783040422,-500.0,0.00016438,2]
[350311018,1737783040431,-500.0,0.00016438,2]
[350311020,1737783040440,-500.0,0.00016438,2]
[350311022,1737783040449,-500.0,0.00016438,2]
[350311024,1737783040459,-500.0,0.00016438,2]
[350311026,1737783040468,-500.0,0.00016438,2]
[350311028,1737783040477,-500.0,0.00016438,2]
[350311030,1737783040487,-500.81155705,0.00016438,2]
[350311032,1737783040496,-500.0,0.00016438,2]
[350311034,1737783040505,-207.36689083,0.00016438,2]
[350311036,1737783040515,-500.0,0.00016438,2]
[350311038,1737783040524,-500.0,0.00016438,2]
[350311040,1737783040534,-500.0,0.00016438,2]
[350311042,1737783040543,-500.0,0.00016438,2]
[350311044,1737783040553,-500.0,0.00016438,2]
[350311046,1737783040563,-500.0,0.00016438,2]
[350311048,1737783040572,-500.0,0.00016438,2]
[350311050,1737783040581,-500.0,0.00016438,2]
[350311052,1737783040595,-544.45,0.00016438,2]
[350311054,1737783040604,-500.0,0.00016438,2]
[350311056,1737783040613,-500.0,0.00016438,2]
[350311058,1737783040623,-500.0,0.00016438,2]
[350311060,1737783040633,-500.0,0.00016438,2]
[350311062,1737783040642,-500.0,0.00016438,2]
[350311064,1737783040652,-594.82985501,0.00016438,2]
[350311066,1737783040662,-500.0,0.00016438,2]
[350311068,1737783040672,-500.0,0.00016438,2]
[350311070,1737783040681,-500.0,0.00016438,2]
[350311072,1737783040690,-455.558396,0.00016438,2]
[350311074,1737783040699,-500.0,0.00016438,2]
[350311076,1737783040709,-500.0,0.00016438,2]
[350311078,1737783040718,-500.0,0.00016438,2]
[350311080,1737783040727,-502.69373547,0.00016438,2]
[350311082,1737783040736,-500.0,0.00016438,2]
[350311084,1737783040746,-705.94,0.00016438,2]
[350311086,1737783040755,-522.06,0.00016438,2]
[350311088,1737783040765,-500.0,0.00016438,2]
[350311090,1737783040774,-760.95,0.00016438,2]
[350311092,1737783040783,-500.0,0.00016438,2]
[350311094,1737783040794,-504.07722467,0.00016438,2]
[350311096,1737783040803,-500.0,0.00016438,2]
[350311098,1737783040812,-500.0,0.00016438,2]
[350311100,1737783040821,-500.0,0.00016438,2]
[350311101,1737783040831,-500.0,0.00016438,2]
[350311103,1737783040840,-500.0,0.00016438,2]
[350311105,1737783040849,-500.0,0.00016438,2]
[350311107,1737783040858,-500.0,0.00016438,2]
[350311109,1737783040867,-842.359431,0.00016438,2]
[350311111,1737783040877,-505.59,0.00016438,2]
[350311113,1737783040886,-500.0,0.00016438,2]
[350311115,1737783040895,-500.0,0.00016438,2]
[350311117,1737783040905,-156.439023,0.00016438,2]
[350311119,1737783040914,-500.0,0.00016438,2]
[350311122,1737783040924,-500.0,0.00016438,2]
[350311124,1737783040934,-553.66,0.00016438,2]
[350311126,1737783040943,-698.56,0.00016438,2]
[350311127,1737783040952,-1108.6,0.00016438,2]
[350311129,1737783040962,-651.44,0.00016438,2]
[350311131,1737783040971,-537.68047674,0.00016438,2]
[350311133,1737783040981,-500.0,0.00016438,2]
[350311135,1737783040991,-500.0,0.00016438,2]
[350311138,1737783041000,-500.0,0.00016438,2]
[350311140,1737783041010,-592.76,0.00016438,2]
[350311141,1737783041020,-500.0,0.00016438,2]
[350311143,1737783041029,-500.0,0.00016438,2]
[350311145,1737783041038,-500.0,0.00016438,2]
[350311148,1737783041049,-500.0,0.00016438,2]
[350311150,1737783041058,-500.0,0.00016438,2]
[350311152,1737783041068,-500.0,0.00016438,2]
[350311153,1737783041077,-639.65,0.00016438,2]
[350311155,1737783041086,-500.0,0.00016438,2]
[350311157,1737783041095,-500.0,0.00016438,2]
[350311159,1737783041105,-516.37,0.00016438,2]
[350311161,1737783041114,-763.03,0.00016438,2]
[350311163,1737783041123,-500.0,0.00016438,2]
[350311165,1737783041132,-518.55,0.00016438,2]
[350311167,1737783041142,-1200.4,0.00016438,2]
[350311169,1737783041151,-500.0,0.00016438,2]
[350311171,1737783041161,-500.0,0.00016438,2]
[350311173,1737783041170,-1125.84,0.00016438,2]
[350311175,1737783041180,-500.0,0.00016438,2]
[350311177,1737783041188,-500.0,0.00016438,2]
[350311179,1737783041198,-500.0,0.00016438,2]
[350311181,1737783041207,-500.0,0.00016438,2]
[350311183,1737783041217,-500.0,0.00016438,2]
[350311185,1737783041226,-500.0,0.00016438,2]
[350311187,1737783041236,-500.0,0.00016438,2]
[350311189,1737783041246,-500.0,0.00016438,2]
[350311191,1737783041255,-500.0,0.00016438,2]
[350311193,1737783041265,-500.0,0.00016438,2]
[350311195,1737783041273,-500.0,0.00016438,2]
[350311197,1737783041282,-500.0,0.00016438,2]
[350311199,1737783041292,-500.0,0.00016438,2]
[350311201,1737783041302,-802.79,0.00016438,2]
[350311203,1737783041311,-500.0,0.00016438,2]
[350311205,1737783041320,-500.0,0.00016438,2]
[350311207,1737783041330,-500.0,0.00016438,2]
[350311209,1737783041339,-500.0,0.00016438,2]
[350311211,1737783041349,-500.0,0.00016438,2]
[350311213,1737783041358,-500.0,0.00016438,2]
[350311215,1737783041367,-961.8,0.00016438,2]
[350311217,1737783041379,-500.0,0.00016438,2]
[350311219,1737783041388,-500.0,0.00016438,2]
[350311221,1737783041398,-516.52,0.00016438,2]
[350311223,1737783041408,-500.0,0.00016438,2]
[350311225,1737783041417,-671.56,0.00016438,2]
[350311227,1737783041427,-500.0,0.00016438,2]
[350311229,1737783041436,-895.01,0.00016438,2]
[350311231,1737783041446,-500.0,0.00016438,2]
[350311233,1737783041456,-500.0,0.00016438,2]
[350311234,1737783041466,-500.0,0.00016438,2]
[350311236,1737783041475,-500.0,0.00016438,2]
[350311238,1737783041485,-500.0,0.00016438,2]
[350311240,1737783041495,-716.74,0.00016438,2]
[350311242,1737783041504,-500.0,0.00016438,2]
[350311244,1737783041514,-500.0,0.00016438,2]
[350311246,1737783041523,-500.0,0.00016438,2]
[350311248,1737783041533,-500.0,0.00016438,2]
[350311250,1737783041542,-500.0,0.00016438,2]
[350311252,1737783041552,-500.0,0.00016438,2]
[350311254,1737783041561,-500.0,0.00016438,2]
[350311256,1737783041570,-500.0,0.00016438,2]
[350311258,1737783041580,-500.0,0.00016438,2]
[350311260,1737783041592,-500.0,0.00016438,2]
[350311262,1737783041601,-500.0,0.00016438,2]
[350311264,1737783041610,-500.0,0.00016438,2]
[350311266,1737783041620,-500.0,0.00016438,2]
[350311268,1737783041629,-1038.34,0.00016438,2]
[350311270,1737783041639,-500.0,0.00016438,2]
[350311272,1737783041648,-1061.24,0.00016438,2]
[350311274,1737783041656,-500.0,0.00016438,2]
[350311276,1737783041668,-782.07,0.00016438,2]
[350311278,1737783041679,-500.0,0.00016438,2]
[350311280,1737783041688,-500.0,0.00016438,2]
[350311282,1737783041698,-500.0,0.00016438,2]
[350311284,1737783041707,-1520.72,0.00016438,2]
[350311286,1737783041717,-500.0,0.00016438,2]
[350311288,1737783041727,-151.529624,0.00016438,2]
[350311290,1737783041736,-500.0,0.00016438,2]
[350311292,1737783041746,-500.0,0.00016438,2]
[350311294,1737783041756,-500.0,0.00016438,2]
[350311296,1737783041766,-1256.58,0.00016438,2]
[350311298,1737783041775,-500.0,0.00016438,2]
[350311300,1737783041784,-500.0,0.00016438,2]
[350311302,1737783041795,-649.67,0.00016438,2]
[350311304,1737783041804,-500.0,0.00016438,2]
[350311306,1737783041813,-511.68791256,0.00016438,2]
[350311308,1737783041829,-500.0,0.00016438,2]
[350311310,1737783041839,-500.0,0.00016438,2]
[350311312,1737783041848,-500.0,0.00016438,2]
[350311314,1737783041857,-500.0,0.00016438,2]
[350311316,1737783041867,-156.126415,0.00016438,2]
[350311318,1737783041877,-500.0,0.00016438,2]
[350311320,1737783041886,-1075.58,0.00016438,2]
[350311322,1737783041895,-1075.58,0.00016438,2]
[350311324,1737783041905,-1075.58,0.00016438,2]
[350311326,1737783041914,-500.0,0.00016438,2]
[350311327,1737783041923,-500.0,0.00016438,2]
[350311328,1737783041933,-500.0,0.00016438,2]
[350311329,1737783041945,-327.34382214,0.00016438,2]
[350311330,1737783041956,-565.16,0.00016438,2]
[350311331,1737783041968,-500.0,0.00016438,2]
[350311332,1737783041981,-500.0,0.00016438,2]
[350311333,1737783041992,-500.0,0.00016438,2]
[350311334,1737783042003,-500.0,0.00016438,2]
[350311335,1737783042014,-500.0,0.00016438,2]
[350311336,1737783042025,-500.0,0.00016438,2]
[350311338,1737783042038,-500.0,0.00016438,2]
[350311340,1737783042050,-563.51,0.00016438,2]
[350311343,1737783042061,-708.27,0.00016438,2]
[350311345,1737783042073,-500.0,0.00016438,2]
[350311347,1737783042084,-500.0,0.00016438,2]
[350311349,1737783042095,-500.0,0.00016438,2]
[350311352,1737783042107,-500.0,0.00016438,2]
[350311354,1737783042119,-560.94,0.00016438,2]
[350311356,1737783042129,-500.0,0.00016438,2]
[350311358,1737783042139,-500.0,0.00016438,2]
[350311360,1737783042150,-500.0,0.00016438,2]
[350311363,1737783042163,-1870.13,0.00016438,2]
[350311365,1737783042175,-170.84407819,0.00016473,2]
[350311367,1737783042186,-1075.58,0.00016573,2]
[350311370,1737783042197,-586.20559456,0.00016574,2]
[350311372,1737783042208,-315.36255697,0.00016574,2]
[350311374,1737783042219,-507.46144411,0.00016574,2]
[350311376,1737783042231,-500.0,0.00016574,2]
[350311378,1737783042242,-500.0,0.00016574,2]
[350311381,1737783042254,-500.0,0.00016574,2]
[350311383,1737783042266,-432.08174422,0.00016574,2]
[350311385,1737783042277,-500.0,0.00016574,2]
[350311388,1737783042289,-507.47349704,0.00016574,2]
[350311390,1737783042301,-509.08995063,0.00016574,2]
[350311392,1737783042311,-500.0,0.00016574,2]
[350311394,1737783042323,-387.9584602,0.00016574,2]
[350311396,1737783042335,-508.1284825,0.00016574,2]
[350311398,1737783042346,-500.0,0.00016574,2]
[350311401,1737783042356,-508.29326602,0.00016574,2]
[350311403,1737783042366,-512.94183085,0.00016574,2]
[350311405,1737783042377,-500.0,0.00016574,2]
[350311407,1737783042388,-500.0,0.00016574,2]
[350311409,1737783042400,-500.0,0.00016574,2]
[350311411,1737783042411,-500.0,0.00016574,2]
[350311414,1737783042422,-500.0,0.00016574,2]
[350311416,1737783042433,-500.0,0.00016574,2]
[350311418,1737783042445,-500.0,0.00016574,2]
[350311420,1737783042455,-500.0,0.00016574,2]
[350311422,1737783042464,-500.0,0.00016574,2]
[350311424,1737783042475,-512.60227768,0.00016574,2]
[350311426,1737783042485,-504.21875812,0.00016574,2]
[350311429,1737783042498,-509.70879991,0.00016574,2]
[350311431,1737783042511,-507.21919927,0.00016574,2]
[350311433,1737783042522,-507.01105591,0.00016574,2]
[350311435,1737783042532,-500.0,0.00016574,2]
[350311438,1737783042542,-500.0,0.00016574,2]
[350311440,1737783042553,-500.0,0.00016574,2]
[350311442,1737783042564,-500.0,0.00016574,2]
[350311444,1737783042575,-502.80479337,0.00016574,2]
[350311446,1737783042589,-506.81207369,0.00016574,2]
[350311448,1737783042601,-500.0,0.00016574,2]
[350311451,1737783042614,-251.77552199,0.00016574,2]
[350311453,1737783042627,-500.0,0.00016574,2]
[350311455,1737783042637,-500.0,0.00016574,2]
[350311457,1737783042648,-500.0,0.00016574,2]
[350311459,1737783042659,-500.0,0.00016574,2]
[350311462,1737783042671,-510.22661213,0.00016574,2]
[350311464,1737783042682,-500.0,0.00016574,2]
[350311466,1737783042692,-500.0,0.00016574,2]
[350311468,1737783042703,-500.0,0.00016574,2]
[350311470,1737783042714,-500.0,0.00016574,2]
[350311473,1737783042725,-500.0,0.00016574,2]
[350311475,1737783042735,-500.0,0.00016574,2]
[350311477,1737783042746,-507.56569054,0.00016574,2]
[350311479,1737783042757,-500.0,0.00016574,2]
[350311481,1737783042767,-500.0,0.00016574,2]
[350311483,1737783042778,-432.38132225,0.00016574,2]
[350311485,1737783042788,-501.68117144,0.00016574,2]
[350311488,1737783042800,-500.0,0.00016574,2]
[350311490,1737783042811,-500.0,0.00016574,2]
[350311492,1737783042821,-500.0,0.00016574,2]
[350311494,1737783042832,-500.0,0.00016574,2]
[350311496,1737783042843,-500.0,0.00016574,2]
[350311498,1737783042853,-500.0,0.00016574,2]
[350311500,1737783042864,-500.0,0.00016574,2]
[350311503,1737783042875,-500.79303777,0.00016574,2]
[350311505,1737783042887,-500.0,0.00016574,2]
[350311507,1737783042898,-500.0,0.00016574,2]
[350311509,1737783042909,-500.0,0.00016574,2]
[350311512,1737783042920,-502.53853378,0.00016574,2]
[350311514,1737783042931,-500.0,0.00016574,2]
[350311516,1737783042941,-505.24977137,0.00016574,2]
[350311518,1737783042952,-541.41732225,0.00016574,2]
[350311520,1737783042962,-500.0,0.00016574,2]
[350311522,1737783042972,-502.16316748,0.00016574,2]
[350311525,1737783042983,-500.0,0.00016574,2]
[350311529,1737783042995,-500.0,0.00016574,2]
[350311531,1737783043005,-500.0,0.00016574,2]
[350311533,1737783043016,-500.0,0.00016574,2]
[350311535,1737783043027,-500.0,0.00016574,2]
[350311537,1737783043038,-500.0,0.00016574,2]
[350311540,1737783043048,-500.0,0.00016574,2]
[350311542,1737783043059,-500.0,0.00016574,2]
[350311544,1737783043069,-500.0,0.00016574,2]
[350311547,1737783043080,-500.0,0.00016574,2]
[350311549,1737783043091,-500.0,0.00016574,2]
[350311551,1737783043101,-504.47791026,0.00016574,2]
[350311553,1737783043113,-605.12886423,0.00016574,2]
[350311555,1737783043124,-500.0,0.00016574,2]